fUST/lending_fUST_20250820
["ID","MTS","AMOUNT","RATE_DAILY","PERIOD"]
[380308366,1755652243783,-151.0,0.000258,7]
[380308368,1755652243792,-151.0,0.000258,7]
[380308370,1755652243801,-160.0,0.000258,3]
[380308372,1755652243810,-375.88899365,0.000258,3]
[380308374,1755652243819,-151.0,0.000258,7]
[380308376,1755652243829,-151.0,0.000258,7]
[380308378,1755652243838,-151.0,0.000258,7]
[380308380,1755652243847,-203.882797,0.000258,2]
[380308382,1755652243856,-4073.91195903,0.000258,2]
[380308384,1755652243865,-151.0,0.000258,7]
[380308386,1755652243875,-182.766563,0.000258,7]
[380308388,1755652243884,-182.766563,0.000258,7]
[380308390,1755652243893,-182.766563,0.000258,7]
[380308392,1755652243902,-182.766563,0.000258,7]
[380308394,1755652243912,-2751.75910922,0.00025811,2]
[380308396,1755652243922,-1000.0,0.0002582,5]
[380308398,1755652243931,-5000.0,0.00025825,30]
[380308400,1755652243940,-5000.0,0.00025825,30]
[380308402,1755652243950,-5000.0,0.00025825,30]
[380308404,1755652243959,-5000.0,0.00025825,30]
[380308406,1755652243968,-5000.0,0.00025825,30]
[380308408,1755652243978,-5000.0,0.00025825,30]
[380308410,1755652243987,-437.47,0.00025825,30]
[380308412,1755652243996,-1000.0,0.0002584,5]
[380308414,1755652244005,-7130.98892475,0.0002584,2]
[380308416,1755652244019,-155.29601,0.00025849,2]
[380308418,1755652244028,-1000.0,0.0002586,5]
[380308420,1755652244038,-1000.0,0.0002588,5]
[380308422,1755652244047,-1140.946546,0.0002588,5]
[380308424,1755652244057,-163.33011413,0.0002588,2]
[380308427,1755652244066,-1284.16872961,0.00025893,2]
[380308429,1755652244076,-12593.72774288,0.000259,14]
[380308431,1755652244085,-2000.0,0.000259,2]
[380308433,1755652244093,-7724.57812515,0.000259,14]
[380308442,1755652244173,-49045.63971639,0.000259,14]
[380308449,1755652244230,-151.0,0.000258,7]
[380308451,1755652244241,-107.00000002,0.000258,7]
[380308459,1755652244313,-216.8835046,0.000222,2]
[380308461,1755652244322,-293.8943201,0.00025397,2]
[380308464,1755652244333,-43.99999998,0.000258,7]
[380308466,1755652244343,-14151.89525531,0.000259,14]
[380308634,1755652246230,-2007.3,0.00022,7]
[380308636,1755652246242,-2007.3,0.000237,7]
[380308638,1755652246252,-2007.3,0.000251,7]
[380308640,1755652246261,-2588.43333476,0.000259,14]
[380308642,1755652246273,-5487.18382372,0.000259,14]
[380308644,1755652246289,-13971.56417804,0.000259,14]
[380310098,1755652882879,210.251982,0.00013699,2]
[380310099,1755653291064,185.65347886,0.00018603,2]
[380310109,1755653411974,175.96182544,0.000187,2]
[380310131,1755653432703,-2127.70950659,0.000189,2]
[380310132,1755653432717,-144.82848747,0.000189,2]
[380310133,1755653432726,-160.0,0.00018998,2]
[380310134,1755653432737,-587.78,0.00019,2]
[380310135,1755653432747,-7223.82218334,0.00019,2]
[380310147,1755653438468,-3138.21816871,0.00019,2]
[380310148,1755653438558,-16544.74861459,0.00019,2]
[380310149,1755653438567,-162.21213551,0.00019076,2]
[380310150,1755653438579,-1000.0,0.00019177,2]
[380310151,1755653438588,-1000.0,0.00019177,2]
[380310152,1755653438597,-480.66,0.00019177,2]
[380310153,1755653438607,-480.0,0.00019178,2]
[380310154,1755653438616,-480.0,0.00019178,2]
[380310155,1755653438625,-480.0,0.00019178,2]
[380310156,1755653438634,-276.94824404,0.00019178,2]
[380310157,1755653438644,-480.0,0.00019178,2]
[380310158,1755653438657,-480.0,0.00019178,2]
[380310159,1755653438667,-480.0,0.00019178,2]
[380310160,1755653438677,-480.0,0.00019178,2]
[380310161,1755653438687,-480.0,0.00019178,2]
[380310162,1755653438699,-481.33138643,0.00019178,2]
[380310163,1755653438710,-480.0,0.00019178,2]
[380310164,1755653438719,-480.0,0.00019178,2]
[380310165,1755653438733,-481.83677106,0.00019178,2]
[380310166,1755653438743,-482.82719879,0.00019178,2]
[380310167,1755653438752,-2656.90706758,0.00019178,2]
[380310168,1755653438762,-480.0,0.00019199,2]
[380310169,1755653438771,-480.0,0.00019199,2]
[380310170,1755653438780,-480.0,0.00019199,2]
[380310171,1755653438790,-480.0,0.00019199,2]
[380310172,1755653438800,-300.0,0.00019379,20]
[380310173,1755653438809,-300.0,0.00019379,20]
[380310174,1755653438818,-300.0,0.00019379,20]
[380310175,1755653438830,-480.0,0.00019452,2]
[380310176,1755653438840,-480.0,0.00019452,2]
[380310177,1755653438849,-480.0,0.00019452,2]
[380310178,1755653438857,-308.0,0.000195,2]
[380310179,1755653438866,-300.0,0.00019561,20]
[380310180,1755653438875,-300.0,0.00019561,20]
[380310181,1755653438885,-480.0,0.00019725,2]
[380310182,1755653438894,-480.0,0.00019726,2]
[380310183,1755653438903,-480.0,0.00019726,2]
[380310184,1755653438913,-571.6751673,0.00019726,2]
[380310185,1755653438922,-480.0,0.00019999,2]
[380310186,1755653438931,-480.0,0.0002,2]
[380310187,1755653438940,-5444.65760256,0.0002,2]
[380310188,1755653438949,-30649.4423574,0.0002,2]
[380310189,1755653438958,-16850.21950294,0.0002,2]
[380310190,1755653438968,-3765.17488772,0.0002,2]
[380310191,1755653438978,-480.0,0.0002,2]
[380310192,1755653438987,-295.81667207,0.00020187,2]
[380310193,1755653438996,-210.251982,0.00020187,2]
[380310194,1755653439005,-480.0,0.00020273,2]
[380310195,1755653439015,-480.0,0.00020273,2]
[380310196,1755653439026,-473.13940471,0.00020273,2]
[380310197,1755653439035,-159.00412804,0.00020547,2]
[380310198,1755653439045,-206.941959,0.00020817,2]
[380310199,1755653439056,-10600.52246766,0.000212,30]
[380310200,1755653439066,-12685.85563623,0.000212,30]
[380310201,1755653439076,-843.93972674,0.0002129,2]
[380310202,1755653439086,-160.0,0.0002129,2]
[380310203,1755653439096,-232.21311493,0.0002129,2]
[380310204,1755653439106,-215.79176414,0.0002129,2]
[380310205,1755653439116,-375.88899365,0.0002129,2]
[380310206,1755653439127,-160.0,0.0002129,2]
[380310207,1755653439137,-480.0,0.00021293,2]
[380310208,1755653439148,-480.0,0.00021293,2]
[380310209,1755653439157,-9444.22848128,0.000215,2]
[380310210,1755653439167,-480.0,0.00021567,2]
[380310211,1755653439176,-600.0,0.00021632,20]
[380310212,1755653439185,-480.0,0.00021841,2]
[380310213,1755653439195,-481.63601172,0.00022115,2]
[380310214,1755653439205,-168.26608752,0.000222,69]
[380310215,1755653439215,-168.26608749,0.000222,69]
[380310216,1755653439224,-1561.23,0.000222,7]
[380310217,1755653439234,-160.0,0.00022424,3]
[380310218,1755653439244,-501.12416989,0.00022445,2]
[380310219,1755653439254,-480.0,0.00022775,2]
[380310220,1755653439264,-480.0,0.00022775,2]
[380310221,1755653439274,-1999.999999,0.0002298,2]
[380310222,1755653439286,-160.0,0.00023,2]
[380310223,1755653439297,-480.0,0.00023049,2]
[380310224,1755653439308,-480.0,0.00023049,2]
[380310225,1755653439318,-480.0,0.00023323,2]
[380310226,1755653439328,-480.0,0.00023323,2]
[380310227,1755653439337,-153.0,0.00023353,2]
[380310228,1755653439347,-153.0,0.00023353,2]
[380310229,1755653439356,-153.0,0.00023353,2]
[380310230,1755653439366,-153.0,0.00023353,2]
[380310231,1755653439375,-153.0,0.00023353,2]
[380310232,1755653439384,-153.0,0.00023353,2]
[380310233,1755653439393,-153.0,0.00023353,2]
[380310234,1755653439402,-153.0,0.00023353,2]
[380310235,1755653439412,-153.0,0.00023353,2]
[380310236,1755653439421,-153.0,0.00023353,2]
[380310237,1755653439430,-153.0,0.00023353,2]
[380310238,1755653439440,-153.0,0.00023353,2]
[380310239,1755653439449,-153.0,0.00023353,2]
[380310240,1755653439459,-153.0,0.00023353,2]
[380310241,1755653439469,-153.0,0.00023353,2]
[380310242,1755653439478,-153.0,0.00023353,2]
[380310243,1755653439487,-153.0,0.00023353,2]
[380310244,1755653439496,-153.0,0.00023353,2]
[380310245,1755653439505,-153.0,0.00023353,2]
[380310246,1755653439514,-153.0,0.00023353,2]
[380310247,1755653439525,-153.0,0.00023353,2]
[380310248,1755653439534,-153.0,0.00023353,2]
[380310249,1755653439544,-153.0,0.00023353,2]
[380310250,1755653439553,-153.0,0.00023353,2]
[380310251,1755653439562,-153.0,0.00023353,2]
[380310252,1755653439571,-153.0,0.00023353,2]
[380310253,1755653439582,-153.0,0.00023353,2]
[380310254,1755653439592,-153.0,0.00023353,2]
[380310255,1755653439747,-153.0,0.00023353,2]
[380310256,1755653439757,-153.0,0.00023353,2]
[380310257,1755653439766,-153.0,0.00023353,2]
[380310258,1755653439776,-153.0,0.00023353,2]
[380310259,1755653439785,-153.0,0.00023353,2]
[380310260,1755653439794,-153.0,0.00023353,2]
[380310261,1755653439802,-153.0,0.00023353,2]
[380310262,1755653439812,-153.0,0.00023353,2]
[380310263,1755653439821,-153.0,0.00023353,2]
[380310264,1755653439831,-153.0,0.00023353,2]
[380310265,1755653439840,-153.0,0.00023353,2]
[380310266,1755653439849,-153.0,0.00023353,2]
[380310267,1755653439860,-153.0,0.00023353,2]
[380310268,1755653439878,-153.0,0.00023353,2]
[380310269,1755653439890,-153.0,0.00023353,2]
[380310270,1755653439899,-153.0,0.00023353,2]
[380310271,1755653439908,-153.0,0.00023353,2]
[380310272,1755653439917,-153.0,0.00023353,2]
[380310273,1755653439925,-153.0,0.00023353,2]
[380310274,1755653439934,-153.0,0.00023353,2]
[380310275,1755653439943,-153.0,0.00023353,2]
[380310276,1755653439952,-153.0,0.00023353,2]
[380310277,1755653439961,-153.0,0.00023353,2]
[380310278,1755653439969,-153.0,0.00023353,2]
[380310279,1755653439978,-153.0,0.00023353,2]
[380310280,1755653439987,-153.0,0.00023353,2]
[380310281,1755653439996,-153.0,0.00023353,2]
[380310282,1755653440005,-153.0,0.00023353,2]
[380310283,1755653440013,-153.0,0.00023353,2]
[380310284,1755653440022,-153.0,0.00023353,2]
[380310285,1755653440031,-153.0,0.00023353,2]
[380310286,1755653440040,-153.0,0.00023353,2]
[380310288,1755653440049,-153.0,0.00023353,2]
[380310289,1755653440058,-153.0,0.00023353,2]
[380310290,1755653440067,-153.0,0.00023353,2]
[380310291,1755653440076,-153.0,0.00023353,2]
[380310293,1755653440084,-153.0,0.00023353,2]
[380310294,1755653440093,-153.0,0.00023353,2]
[380310296,1755653440102,-153.0,0.00023353,2]
[380310298,1755653440111,-153.0,0.00023353,2]
[380310299,1755653440120,-153.0,0.00023353,2]
[380310301,1755653440129,-153.0,0.00023353,2]
[380310302,1755653440138,-153.0,0.00023353,2]
[380310303,1755653440147,-153.0,0.00023353,2]
[380310304,1755653440156,-153.0,0.00023353,2]
[380310305,1755653440165,-153.0,0.00023353,2]
[380310306,1755653440174,-153.0,0.00023353,2]
[380310307,1755653440184,-153.0,0.00023353,2]
[380310308,1755653440193,-153.0,0.00023353,2]
[380310309,1755653440202,-153.0,0.00023353,2]
[380310310,1755653440211,-153.0,0.00023353,2]
[380310311,1755653440221,-153.0,0.00023353,2]
[380310312,1755653440230,-153.0,0.00023353,2]
[380310313,1755653440239,-153.0,0.00023353,2]
[380310314,1755653440248,-153.0,0.00023353,2]
[380310315,1755653440258,-153.0,0.00023353,2]
[380310316,1755653440267,-153.0,0.00023353,2]
[380310317,1755653440276,-153.0,0.00023353,2]
[380310318,1755653440285,-153.0,0.00023353,2]
[380310319,1755653440294,-153.0,0.00023353,2]
[380310320,1755653440303,-153.0,0.00023353,2]
[380310321,1755653440312,-153.0,0.00023353,2]
[380310322,1755653440321,-153.0,0.00023353,2]
[380310323,1755653440334,-153.0,0.00023353,2]
[380310324,1755653440353,-153.0,0.00023353,2]
[380310325,1755653440370,-153.0,0.00023353,2]
[380310326,1755653440379,-153.0,0.00023353,2]
[380310327,1755653440389,-153.0,0.00023353,2]
[380310328,1755653440398,-153.0,0.00023353,2]
[380310329,1755653440407,-153.0,0.00023353,2]
[380310330,1755653440415,-153.0,0.00023353,2]
[380310331,1755653440424,-153.0,0.00023353,2]
[380310332,1755653440433,-153.0,0.00023353,2]
[380310333,1755653440442,-153.0,0.00023353,2]
[380310334,1755653440451,-153.0,0.00023353,2]
[380310335,1755653440461,-153.0,0.00023353,2]
[380310336,1755653440470,-153.0,0.00023353,2]
[380310337,1755653440479,-153.0,0.00023353,2]
[380310338,1755653440487,-153.0,0.00023353,2]
[380310339,1755653440498,-153.0,0.00023353,2]
[380310340,1755653440518,-153.0,0.00023353,2]
[380310341,1755653440535,-160.0,0.00023489,2]
[380310342,1755653440544,-1000.0,0.000235,2]
[380310343,1755653440560,-160.0,0.0002354,4]
[380310344,1755653440569,-160.0,0.0002354,5]
[380310345,1755653440580,-572.03736833,0.00023597,2]
[380310346,1755653440589,-500.0,0.00023599,2]
[380310347,1755653440598,-2239.08574051,0.00023599,2]
[380310348,1755653440607,-200.3452464,0.00023599,2]
[380310349,1755653440616,-2239.08574051,0.00023599,2]
[380310350,1755653440626,-2239.08574051,0.00023599,2]
[380310351,1755653440635,-2239.08574051,0.00023599,2]
[380310352,1755653440644,-2239.08574051,0.00023599,2]
[380310353,1755653440656,-2239.08574051,0.00023599,2]
[380310354,1755653440665,-2239.08574051,0.00023599,2]
[380310355,1755653440674,-2239.08574051,0.00023599,2]
[380310356,1755653440683,-2239.08574051,0.00023599,2]
[380310357,1755653440693,-2239.08574051,0.00023599,2]
[380310358,1755653440703,-2239.08574051,0.00023599,2]
[380310359,1755653440712,-2239.08574051,0.00023599,2]
[380310360,1755653440722,-2239.08574051,0.00023599,2]
[380310361,1755653440732,-2239.08574051,0.00023599,2]
[380310362,1755653440742,-181702.74534028,0.000236,2]
[380310363,1755653440752,-1316.78010761,0.0002368,2]
[380310364,1755653440761,-1635.40048706,0.00023725,2]
[380310365,1755653440771,-1635.40048706,0.0002379,2]
[380310366,1755653440780,-720.0,0.00023795,20]
[380310367,1755653440790,-1000.0,0.00023825,2]
[380310368,1755653440799,-2272.53799406,0.000239,2]
[380310369,1755653440809,-17842.522448,0.00023934,2]
[380310370,1755653440819,-156.39649526,0.00023934,2]
[380310371,1755653440829,-151.0,0.00023934,2]
[380310372,1755653440838,-2281.37175047,0.00023934,2]
[380310373,1755653440848,-151.0,0.00023934,2]
[380310374,1755653440857,-269.97279578,0.00023934,2]
[380310375,1755653440868,-21364.34054051,0.00023998,2]
[380310376,1755653440877,-1701.74679685,0.00024,2]
[380310377,1755653440887,-157.34,0.00024,14]
[380310378,1755653440898,-349.62002962,0.00024,7]
[380310379,1755653440907,-215.79176414,0.00024,3]
[380310380,1755653440917,-260.0,0.00024037,2]
[380310381,1755653440926,-1316.78010761,0.0002416,2]
[380310382,1755653440936,-168.26608749,0.00024262,78]
[380310383,1755653440945,-155.2,0.00024305,7]
[380310384,1755653440955,-1561.23,0.000244,7]
[380310385,1755653440964,-1000.0,0.00024403,5]
[380310386,1755653440973,-155.2,0.00024405,7]
[380310387,1755653440982,-1000.0,0.000245,2]
[380310388,1755653440991,-1000.0,0.000245,2]
[380310389,1755653441001,-1000.0,0.000245,2]
[380310390,1755653441010,-660.13825084,0.000245,2]
[380310391,1755653441019,-155.2,0.00024505,7]
[380310392,1755653441029,-587.7886402,0.00024575,2]
[380310393,1755653441038,-293.8943201,0.00024575,2]
[380310395,1755653441047,-298.3721007,0.00024575,2]
[380310397,1755653441056,-360.0,0.00024585,2]
[380310399,1755653441066,-1000.0,0.000246,2]
[380310401,1755653441076,-1000.0,0.000246,2]
[380310403,1755653441085,-1000.0,0.000246,2]
[380310405,1755653441095,-155.2,0.00024605,7]
[380310407,1755653441104,-1316.78010761,0.0002464,2]
[380310409,1755653441113,-390939.60251135,0.0002465,2]
[380310411,1755653441122,-500.0,0.00024658,2]
[380310413,1755653441131,-500.0,0.00024673,2]
[380310415,1755653441140,-155.2,0.00024705,7]
[380310417,1755653441149,-155.2,0.00024805,7]
[380310419,1755653441158,-2153.0,0.00024858,2]
[380310421,1755653441167,-637.0,0.00024858,2]
[380310423,1755653441176,-408.0,0.00024858,2]
[380310425,1755653441186,-600.0,0.00024864,2]
[380310427,1755653441195,-1000.0,0.00024921,2]
[380310429,1755653441204,-500.0,0.00024932,2]
[380310431,1755653441212,-500.0,0.00024932,2]
[380310433,1755653441222,-151.0,0.00024932,2]
[380310435,1755653441231,-250.0,0.00024973,2]
[380310437,1755653441241,-29690.53798499,0.00025,2]
[380310439,1755653441250,-160.0,0.00025,30]
[380310441,1755653441259,-548.0,0.00025029,2]
[380310443,1755653441268,-548.0,0.0002503,2]
[380310445,1755653441278,-548.0,0.00025109,2]
[380310447,1755653441287,-1316.78010761,0.0002512,2]
[380310449,1755653441297,-659.7930276,0.00025123,2]
[380310451,1755653441307,-600.0,0.00025123,2]
[380310453,1755653441316,-460.0,0.00025133,2]
[380310455,1755653441326,-864.3069494,0.00025178,2]
[380310457,1755653441335,-155.29601,0.000252,15]
[380310459,1755653441345,-500.0,0.00025206,2]
[380310461,1755653441354,-500.0,0.00025206,2]
[380310463,1755653441363,-1000.0,0.00025221,2]
[380310465,1755653441373,-155.29601,0.00025262,2]
[380310467,1755653441382,-548.0,0.00025262,2]
[380310469,1755653441392,-204823.670638,0.00025273,2]
[380310471,1755653441401,-18502.69577858,0.00025303,2]
[380310473,1755653441410,-151.0,0.00025303,2]
[380310475,1755653441421,-548.0,0.00025335,2]
[380310477,1755653441430,-687.9397773,0.00025362,2]
[380310479,1755653441439,-153.0,0.00025397,2]
[380310481,1755653441448,-293.8943201,0.00025397,2]
[380310483,1755653441457,-293.8943201,0.00025397,2]
[380310485,1755653441466,-293.8943201,0.00025397,2]
[380310487,1755653441476,-293.8943201,0.00025397,2]
[380310489,1755653441485,-293.8943201,0.00025397,2]
[380310491,1755653441494,-153.0,0.00025397,2]
[380310493,1755653441503,-153.0,0.00025397,2]
[380310495,1755653441519,-153.0,0.00025397,2]
[380310497,1755653441534,-153.0,0.00025397,2]
[380310499,1755653441544,-155.29601,0.000254,15]
[380310501,1755653441553,-200.0,0.0002543,13]
[380310503,1755653441562,-500.0,0.0002548,2]
[380310505,1755653441572,-500.0,0.0002548,2]
[380310507,1755653441585,-1000.0,0.000255,2]
[380310509,1755653441595,-476.44710038,0.000255,2]
[380310511,1755653441604,-1905.78840152,0.000255,2]
[380310513,1755653441613,-4283.73587951,0.000255,2]
[380310515,1755653441623,-284.04408466,0.000255,2]
[380310517,1755653441632,-1136.17633863,0.000255,2]
[380310519,1755653441642,-2556.39676193,0.000255,2]
[380310521,1755653441655,-4544.70535453,0.000255,2]
[380310523,1755653441664,-7094.00101434,0.000255,2]
[380310525,1755653441673,-548.0,0.00025536,2]
[380310527,1755653441683,-155.29601,0.000256,15]
[380310529,1755653441692,-645.0,0.000256,2]
[380310531,1755653441702,-1357.97065301,0.000256,2]
[380310533,1755653441712,-1316.78010761,0.000256,2]
[380310535,1755653441724,-525.9554681,0.00025673,2]
[380310537,1755653441733,-1122.90847075,0.00025674,2]
[380310539,1755653441742,-279.29476802,0.00025674,2]
[380310541,1755653441752,-305.24,0.00025674,3]
[380310543,1755653441761,-151.0,0.00025674,7]
[380310545,1755653441771,-151.0,0.00025674,7]
[380310547,1755653441780,-151.0,0.00025674,7]
[380310549,1755653441789,-151.0,0.00025674,7]
[380310551,1755653441798,-182.766563,0.00025674,7]
[380310553,1755653441807,-268.844303,0.00025674,7]
[380310555,1755653441818,-182.766563,0.00025674,7]
[380310556,1755653441827,-409647.341276,0.00025674,2]
[380310557,1755653441836,-301.79132965,0.00025675,2]
[380310558,1755653441846,-560.0,0.00025681,2]
[380310559,1755653441855,-4242.55,0.000257,7]
[380310560,1755653441865,-7130.98892477,0.000257,2]
[380310561,1755653441874,-151.0,0.000257,17]
[380310562,1755653441884,-1357.97065301,0.000257,2]
[380310563,1755653441893,-213.63565931,0.00025739,2]
[380310564,1755653441903,-2200.0,0.00025741,2]
[380310565,1755653441912,-500.0,0.00025754,2]
[380310566,1755653441921,-500.0,0.00025754,2]
[380310567,1755653441930,-211.0,0.00025766,2]
[380310568,1755653441939,-1500.0,0.00025768,2]
[380310569,1755653441949,-1122.90847075,0.00025774,2]
[380310570,1755653441958,-1410.738017,0.0002578,5]
[380310571,1755653441967,-2525.38675521,0.00025799,2]
[380310572,1755653441976,-32551.59459735,0.00025799,15]
[380310573,1755653442056,-49045.63971639,0.00025799,15]
[380310574,1755653442067,-2591.56992816,0.00025799,15]
[380310581,1755653443666,-199.73782931,0.00020187,2]
[380310582,1755653443675,-3508.08,0.0002359,10]
[380310583,1755653443684,-293.8943201,0.00024575,2]
[380310584,1755653443693,-182.766563,0.00025674,7]
[380310586,1755653443702,-182.766563,0.00025674,7]
[380310587,1755653443711,-151.0,0.00025674,7]
[380310588,1755653443722,-151.0,0.00025674,7]
[380310589,1755653443731,-2816.49760937,0.00025799,15]
[380310602,1755653446785,-151.0,0.00025674,7]
[380310603,1755653446797,-151.0,0.00025674,7]
[380310604,1755653446806,-16821.9999982,0.00025799,15]
[380310606,1755653661179,170.16508468,0.000187,2]
[380310607,1755653807468,198.906262,0.00013699,2]
[380310616,1755654517592,25130.07725429,0.00028767,120]
[380310619,1755654569385,1000.0,7.7e-07,120]
[380310620,1755654577190,1000.0,7.7e-07,120]
[380310621,1755654583849,1000.0,7.7e-07,120]
[380310622,1755654592565,1000.0,7.7e-07,120]
[380310623,1755654600428,1000.0,7.7e-07,120]
[380310624,1755654609682,1000.0,7.7e-07,120]
[380310625,1755654620186,1000.0,7.7e-07,120]
[380310626,1755654631526,1000.0,7.7e-07,120]
[380310703,1755654636546,-300.0,0.00018899,2]
[380310704,1755654636555,-300.0,0.00018899,2]
[380310705,1755654636564,-300.0,0.00018899,2]
[380310706,1755654636573,-227.65777674,0.00018899,2]
[380310710,1755654636599,-72.34222326,0.00018899,2]
[380310712,1755654636608,-433.94859816,0.00018899,2]
[380310714,1755654636619,-766.05140184,0.00018899,2]
[380310716,1755654636628,-1517.89801124,0.000189,2]
[380310718,1755654636637,-176.23760846,0.000189,2]
[380310720,1755654636645,-399.28392364,0.000189,2]
[380310722,1755654636657,-234.0,0.00018972,2]
[380310724,1755654636666,-500.5691591,0.00018973,2]
[380310726,1755654636675,-506.10076842,0.00018973,2]
[380310728,1755654636684,-501.35108305,0.00018973,2]
[380310731,1755654636693,-502.06232825,0.00018973,2]
[380310733,1755654636702,-276.73925959,0.00018973,2]
[380310737,1755654636711,-626.25631832,0.00018973,2]
[380310739,1755654636719,-500.0,0.00018973,2]
[380310741,1755654636729,-2438.87275836,0.00018973,2]
[380310743,1755654636740,-522.23507028,0.00018973,2]
[380310745,1755654636749,-501.04727987,0.00018973,2]
[380310747,1755654636759,-150.74311203,0.00018973,2]
[380310748,1755654636768,-151.53605835,0.00018989,2]
[380310749,1755654636777,-533.57395499,0.00018989,2]
[380310750,1755654636786,-381.12,0.00019,2]
[380310751,1755654636795,-44797.75606066,0.00019,2]
[380310761,1755654638778,-63611.03393934,0.00019,2]
[380310762,1755654638788,-12761.33,0.00019,2]
[380310763,1755654638797,-337.25,0.00019168,3]
[380310764,1755654638807,-201.35383747,0.00019178,2]
[380310765,1755654638817,-482.75718009,0.00019178,2]
[380310766,1755654638827,-481.14380607,0.00019178,2]
[380310767,1755654638836,-481.23015871,0.00019178,2]
[380310768,1755654638846,-461.27168288,0.00019178,2]
[380310769,1755654638855,-466.06203494,0.00019178,2]
[380310770,1755654638865,-504.4909526,0.00019178,2]
[380310771,1755654638878,-482.31088707,0.00019178,2]
[380310772,1755654638888,-481.71501052,0.00019178,2]
[380310773,1755654638900,-486.94615284,0.00019178,2]
[380310774,1755654638912,-460.832839,0.00019178,2]
[380310775,1755654638931,-482.57928243,0.00019178,2]
[380310776,1755654638954,-485.38976417,0.00019178,2]
[380310777,1755654638974,-481.72862876,0.00019178,2]
[380310778,1755654638995,-486.67270491,0.00019178,2]
[380310779,1755654639006,-151.14904501,0.00019178,2]
[380310780,1755654639019,-481.69835467,0.00019178,2]
[380310781,1755654639031,-483.94201567,0.00019178,2]
[380310782,1755654639042,-440.53747716,0.00019178,2]
[380310783,1755654639052,-480.55466114,0.00019178,2]
[380310784,1755654639063,-481.49125246,0.00019178,2]
[380310785,1755654639073,-488.6319725,0.00019178,2]
[380310786,1755654639084,-485.52649367,0.00019178,2]
[380310787,1755654639093,-462.67137449,0.00019178,2]
[380310788,1755654639103,-491.69138709,0.00019178,2]
[380310789,1755654639115,-279.49023595,0.00019178,2]
[380310790,1755654639126,-481.75519435,0.00019178,2]
[380310791,1755654639137,-485.79367377,0.00019178,2]
[380310792,1755654639149,-484.96403687,0.00019178,2]
[380310793,1755654639159,-462.71519942,0.00019178,2]
[380310794,1755654639169,-480.0,0.00019178,2]
[380310795,1755654639178,-484.83939562,0.00019178,2]
[380310796,1755654639187,-484.76434051,0.00019178,2]
[380310797,1755654639196,-480.0,0.00019178,2]
[380310798,1755654639206,-480.0,0.00019178,2]
[380310799,1755654639215,-498.68278023,0.00019178,2]
[380310800,1755654639226,-480.0,0.00019178,2]
[380310801,1755654639236,-489.31297426,0.00019178,2]
[380310802,1755654639245,-402.71773963,0.00019178,2]
[380310803,1755654639255,-461.29540317,0.00019178,2]
[380310804,1755654639264,-480.0,0.00019178,2]
[380310805,1755654639275,-488.52883067,0.00019178,2]
[380310806,1755654639285,-588.50552689,0.00019178,2]
[380310807,1755654639296,-371.68510132,0.00019178,2]
[380310808,1755654639306,-571.01233429,0.00019178,2]
[380310809,1755654639316,-480.0,0.00019178,2]
[380310810,1755654639327,-485.56484232,0.00019178,2]
[380310811,1755654639336,-241.24018608,0.00019178,2]
[380310812,1755654639346,-516.10072444,0.00019178,2]
[380310813,1755654639357,-444.13695414,0.00019178,2]
[380310814,1755654639367,-483.76468626,0.00019178,2]
[380310815,1755654639376,-480.0,0.00019178,2]